fUSD/lending_fUSD_20250524
["ID","MTS","AMOUNT","RATE_DAILY","PERIOD"]
[362236189,1748115050319,-151.0,0.00019232,2]
[362236190,1748115050329,-7354.43,0.00019232,2]
[362236191,1748115050340,-481.64659151,0.00019232,2]
[362236192,1748115050352,-255.84104705,0.00019232,2]
[362236193,1748115050363,-420.0,0.00019232,2]
[362236194,1748115050372,-151.0,0.00019232,2]
[362236195,1748115050382,-2348.44,0.00019232,2]
[362236196,1748115050392,-2573.5,0.00019232,2]
[362236197,1748115050402,-702.75,0.00019232,2]
[362236198,1748115050412,-2178.19,0.00019232,2]
[362236199,1748115050422,-420.0,0.00019232,2]
[362236200,1748115050431,-420.0,0.00019232,2]
[362236201,1748115050441,-420.0,0.00019232,2]
[362236202,1748115050451,-420.0,0.00019232,2]
[362236203,1748115050460,-420.0,0.00019232,2]
[362236204,1748115050470,-1227.57,0.00019232,2]
[362236205,1748115050480,-541.11,0.00019232,2]
[362236206,1748115050490,-420.0,0.00019232,2]
[362236207,1748115050501,-2477.15,0.00019232,2]
[362236208,1748115050511,-420.0,0.00019232,2]
[362236209,1748115050521,-420.0,0.00019232,2]
[362236210,1748115050532,-420.0,0.00019232,2]
[362236211,1748115050544,-420.0,0.00019232,2]
[362236212,1748115050555,-420.0,0.00019232,2]
[362236213,1748115050567,-420.0,0.00019232,2]
[362236214,1748115050577,-420.0,0.00019232,2]
[362236215,1748115050586,-420.0,0.00019232,2]
[362236216,1748115050597,-420.0,0.00019232,2]
[362236217,1748115050607,-429.87,0.00019232,2]
[362236218,1748115050617,-420.0,0.00019232,2]
[362236219,1748115050627,-1089.61,0.00019232,2]
[362236220,1748115050639,-2842.27,0.00019232,2]
[362236221,1748115050651,-420.0,0.00019232,2]
[362236222,1748115050663,-420.0,0.00019232,2]
[362236223,1748115050677,-420.0,0.00019232,2]
[362236224,1748115050686,-420.0,0.00019232,2]
[362236225,1748115050698,-420.0,0.00019232,2]
[362236226,1748115050711,-420.0,0.00019232,2]
[362236227,1748115050722,-420.0,0.00019232,2]
[362236228,1748115050732,-420.0,0.00019232,2]
[362236229,1748115050744,-9209.65,0.00019232,2]
[362236230,1748115050755,-2923.07,0.00019232,2]
[362236231,1748115050766,-420.0,0.00019232,2]
[362236232,1748115050776,-151.0,0.00019232,2]
[362236233,1748115050789,-420.0,0.00019232,2]
[362236234,1748115050800,-5360.15,0.00019232,2]
[362236235,1748115050811,-420.0,0.00019232,2]
[362236236,1748115050824,-420.0,0.00019232,2]
[362236237,1748115051045,-420.0,0.00019232,2]
[362236238,1748115051055,-420.0,0.00019232,2]
[362236239,1748115051066,-420.0,0.00019232,2]
[362236240,1748115051076,-420.0,0.00019232,2]
[362236241,1748115051086,-420.0,0.00019232,2]
[362236242,1748115051095,-420.0,0.00019232,2]
[362236243,1748115051104,-420.0,0.00019232,2]
[362236244,1748115051115,-5522.98,0.00019232,2]
[362236245,1748115051124,-420.0,0.00019232,2]
[362236246,1748115051134,-510.78,0.00019232,2]
[362236247,1748115051144,-541.59,0.00019232,2]
[362236248,1748115051153,-420.0,0.00019232,2]
[362236249,1748115051162,-196.95829406,0.00019232,2]
[362236250,1748115051171,-420.0,0.00019232,2]
[362236251,1748115051181,-510.16215457,0.00019232,2]
[362236252,1748115051191,-420.0,0.00019232,2]
[362236253,1748115051201,-420.0,0.00019232,2]
[362236254,1748115051210,-420.0,0.00019232,2]
[362236255,1748115051220,-420.0,0.00019232,2]
[362236256,1748115051230,-362.32608074,0.00019232,2]
[362236257,1748115051240,-420.0,0.00019232,2]
[362236258,1748115051250,-420.0,0.00019232,2]
[362236259,1748115051259,-420.0,0.00019232,2]
[362236260,1748115051268,-420.0,0.00019232,2]
[362236261,1748115051278,-344.613343,0.00019232,2]
[362236262,1748115051287,-420.0,0.00019232,2]
[362236263,1748115051297,-262.85176524,0.00019232,2]
[362236264,1748115051307,-675.32,0.00019232,2]
[362236265,1748115051316,-420.0,0.00019232,2]
[362236266,1748115051325,-420.0,0.00019232,2]
[362236267,1748115051335,-420.0,0.00019232,2]
[362236268,1748115051344,-420.0,0.00019232,2]
[362236269,1748115051353,-420.0,0.00019232,2]
[362236270,1748115051363,-420.0,0.00019232,2]
[362236271,1748115051373,-420.0,0.00019232,2]
[362236272,1748115051382,-10569.08,0.00019232,2]
[362236273,1748115051392,-420.0,0.00019232,2]
[362236274,1748115051401,-420.0,0.00019232,2]
[362236275,1748115051410,-420.0,0.00019232,2]
[362236276,1748115051420,-151.0,0.00019232,2]
[362236277,1748115051430,-420.0,0.00019232,2]
[362236278,1748115051439,-420.0,0.00019232,2]
[362236279,1748115051449,-151.0,0.00019232,2]
[362236280,1748115051458,-862.52,0.00019232,2]
[362236281,1748115051468,-420.0,0.00019232,2]
[362236282,1748115051477,-151.0,0.00019232,2]
[362236283,1748115051487,-420.0,0.00019232,2]
[362236284,1748115051496,-420.0,0.00019232,2]
[362236285,1748115051505,-170.03100195,0.00019242,2]
[362236286,1748115051515,-6061.71841447,0.00019245,2]
[362236287,1748115051525,-152.5059205,0.0001925,2]
[362236288,1748115051535,-231.18,0.00019259,2]
[362236289,1748115051544,-222.071636,0.0001926,2]
[362236290,1748115051554,-420.0,0.0001926,2]
[362236291,1748115051564,-420.0,0.0001926,2]
[362236292,1748115051574,-420.0,0.0001926,2]
[362236293,1748115051584,-250.0,0.0001926,2]
[362236294,1748115051593,-386.35062913,0.0001926,2]
[362236295,1748115051603,-420.0,0.0001926,2]
[362236296,1748115051614,-420.0,0.0001926,2]
[362236297,1748115051623,-404.22399292,0.0001926,2]
[362236298,1748115051634,-339.84736401,0.0001926,2]
[362236299,1748115051643,-420.0,0.0001926,2]
[362236300,1748115051652,-420.0,0.0001926,2]
[362236301,1748115051662,-420.0,0.0001926,2]
[362236302,1748115051676,-1241.04,0.0001926,2]
[362236303,1748115051686,-420.0,0.0001926,2]
[362236304,1748115051696,-420.0,0.0001926,2]
[362236305,1748115051707,-420.0,0.0001926,2]
[362236306,1748115051719,-420.0,0.0001926,2]
[362236307,1748115051728,-420.0,0.0001926,2]
[362236308,1748115051738,-505.68933559,0.0001926,2]
[362236309,1748115051748,-420.0,0.0001926,2]
[362236310,1748115051758,-420.0,0.0001926,2]
[362236311,1748115051768,-420.0,0.0001926,2]
[362236312,1748115051777,-151.0,0.0001926,2]
[362236313,1748115051787,-420.0,0.0001926,2]
[362236314,1748115051796,-861.14,0.0001926,2]
[362236315,1748115051806,-429.56,0.0001926,2]
[362236316,1748115051815,-254.35644097,0.0001926,2]
[362236317,1748115051824,-420.0,0.0001926,2]
[362236318,1748115051834,-151.0,0.0001926,2]
[362236319,1748115051843,-420.0,0.0001926,2]
[362236320,1748115051852,-569.62,0.0001926,2]
[362236321,1748115051862,-420.0,0.0001926,2]
[362236322,1748115051872,-420.0,0.0001926,2]
[362236323,1748115051882,-420.0,0.0001926,2]
[362236324,1748115051892,-420.0,0.0001926,2]
[362236325,1748115051901,-420.0,0.0001926,2]
[362236326,1748115051910,-420.0,0.0001926,2]
[362236327,1748115051920,-420.0,0.0001926,2]
[362236328,1748115051929,-1509.95,0.0001926,2]
[362236329,1748115051939,-1012.03,0.0001926,2]
[362236330,1748115051949,-1201.17,0.0001926,2]
[362236331,1748115051959,-420.0,0.0001926,2]
[362236332,1748115051969,-420.0,0.0001926,2]
[362236333,1748115051979,-1007.69,0.0001926,2]
[362236334,1748115051988,-420.0,0.0001926,2]
[362236335,1748115051998,-420.0,0.0001926,2]
[362236336,1748115052007,-420.0,0.0001926,2]
[362236337,1748115052017,-420.0,0.0001926,2]
[362236338,1748115052026,-420.0,0.0001926,2]
[362236339,1748115052036,-420.0,0.0001926,2]
[362236340,1748115052046,-1958.34,0.0001926,2]
[362236341,1748115052055,-312.51425235,0.0001926,2]
[362236342,1748115052064,-151.0,0.0001926,2]
[362236343,1748115052074,-420.0,0.0001926,2]
[362236344,1748115052084,-420.0,0.0001926,2]
[362236345,1748115052093,-420.0,0.0001926,2]
[362236346,1748115052103,-420.0,0.0001926,2]
[362236347,1748115052114,-420.0,0.0001926,2]
[362236348,1748115052124,-1294.31,0.0001926,2]
[362236349,1748115052134,-477.84855975,0.0001926,2]
[362236350,1748115052145,-151.0,0.0001926,2]
[362236351,1748115052154,-151.0,0.0001926,2]
[362236352,1748115052164,-420.0,0.0001926,2]
[362236353,1748115052174,-420.0,0.0001926,2]
[362236354,1748115052184,-420.0,0.0001926,2]
[362236355,1748115052193,-420.0,0.0001926,2]
[362236356,1748115052202,-1748.26,0.0001926,2]
[362236357,1748115052212,-420.0,0.0001926,2]
[362236358,1748115052222,-420.0,0.0001926,2]
[362236359,1748115052231,-480.59765028,0.0001926,2]
[362236360,1748115052240,-420.0,0.0001926,2]
[362236361,1748115052251,-451.9,0.0001926,2]
[362236362,1748115052261,-420.0,0.0001926,2]
[362236363,1748115052272,-420.0,0.0001926,2]
[362236364,1748115052281,-420.0,0.0001926,2]
[362236365,1748115052291,-389.9974941,0.0001926,2]
[362236366,1748115052300,-420.0,0.0001926,2]
[362236367,1748115052309,-420.0,0.0001926,2]
[362236368,1748115052320,-420.0,0.0001926,2]
[362236369,1748115052329,-420.0,0.0001926,2]
[362236370,1748115052339,-151.0,0.0001926,2]
[362236371,1748115052349,-420.0,0.0001926,2]
[362236372,1748115052359,-555.82,0.0001926,2]
[362236373,1748115052369,-420.0,0.0001926,2]
[362236374,1748115052379,-420.0,0.0001926,2]
[362236375,1748115052388,-420.0,0.0001926,2]
[362236376,1748115052398,-420.0,0.0001926,2]
[362236377,1748115052408,-536.45,0.0001926,2]
[362236378,1748115052418,-472.37584994,0.0001926,2]
[362236379,1748115052428,-489.7178713,0.0001926,2]
[362236380,1748115052438,-381.46672693,0.0001926,2]
[362236381,1748115052447,-420.0,0.0001926,2]
[362236382,1748115052458,-420.0,0.0001926,2]
[362236383,1748115052468,-180.04226817,0.0001926,2]
[362236384,1748115052479,-420.0,0.0001926,2]
[362236385,1748115052488,-420.0,0.0001926,2]
[362236386,1748115052500,-420.0,0.0001926,2]
[362236387,1748115052509,-239.76307217,0.0001926,2]
[362236388,1748115052519,-522.17371716,0.0001926,2]
[362236389,1748115052528,-420.0,0.0001926,2]
[362236390,1748115052538,-420.0,0.0001926,2]
[362236391,1748115052547,-420.0,0.0001926,2]
[362236392,1748115052557,-420.0,0.0001926,2]
[362236393,1748115052566,-151.0,0.0001926,2]
[362236394,1748115052575,-420.0,0.0001926,2]
[362236395,1748115052585,-456.324027,0.0001926,2]
[362236396,1748115052594,-151.0,0.0001926,2]
[362236397,1748115052603,-420.0,0.0001926,2]
[362236398,1748115052613,-420.0,0.0001926,2]
[362236399,1748115052622,-333.22034965,0.0001926,2]
[362236400,1748115052631,-456.324027,0.0001926,2]
[362236401,1748115052640,-420.0,0.0001926,2]
[362236402,1748115052650,-237.511787,0.0001926,2]
[362236403,1748115052660,-151.0,0.0001926,2]
[362236404,1748115052674,-333.84050053,0.0001926,2]
[362236405,1748115052683,-420.0,0.0001926,2]
[362236406,1748115052693,-420.0,0.0001926,2]
[362236407,1748115052703,-420.0,0.0001926,2]
[362236408,1748115052712,-420.0,0.0001926,2]
[362236409,1748115052722,-420.0,0.0001926,2]
[362236410,1748115052731,-420.0,0.0001926,2]
[362236411,1748115052741,-420.0,0.0001926,2]
[362236412,1748115052753,-420.0,0.0001926,2]
[362236413,1748115052762,-420.0,0.0001926,2]
[362236414,1748115052772,-420.0,0.0001926,2]
[362236415,1748115052781,-420.0,0.0001926,2]
[362236416,1748115052790,-420.0,0.0001926,2]
[362236417,1748115052800,-420.0,0.0001926,2]
[362236418,1748115052810,-420.0,0.0001926,2]
[362236419,1748115052819,-420.0,0.0001926,2]
[362236420,1748115052829,-420.0,0.0001926,2]
[362236421,1748115052839,-151.0,0.0001926,2]
[362236422,1748115052849,-420.0,0.0001926,2]
[362236423,1748115052858,-420.0,0.0001926,2]
[362236424,1748115052868,-420.0,0.0001926,2]
[362236425,1748115052878,-151.0,0.0001926,2]
[362236426,1748115052887,-420.0,0.0001926,2]
[362236427,1748115052897,-354.87062839,0.0001926,2]
[362236428,1748115052906,-435.26,0.0001926,2]
[362236429,1748115052915,-420.0,0.0001926,2]
[362236430,1748115052925,-151.0,0.0001926,2]
[362236431,1748115052935,-151.0,0.0001926,2]
[362236432,1748115052945,-420.0,0.0001926,2]
[362236433,1748115052955,-420.0,0.0001926,2]
[362236434,1748115052964,-420.0,0.0001926,2]
[362236435,1748115052974,-151.0,0.0001926,2]
[362236436,1748115052983,-420.0,0.0001926,2]
[362236437,1748115052992,-420.0,0.0001926,2]
[362236438,1748115053002,-420.0,0.0001926,2]
[362236439,1748115053012,-420.0,0.0001926,2]
[362236440,1748115053021,-4085.85,0.0001926,2]
[362236441,1748115053031,-609.33,0.0001926,2]
[362236442,1748115053040,-420.0,0.0001926,2]
[362236443,1748115053049,-4966.72,0.0001926,2]
[362236444,1748115053058,-152.971412,0.0001926,2]
[362236445,1748115053068,-420.0,0.0001926,2]
[362236446,1748115053077,-420.0,0.0001926,2]
[362236447,1748115053086,-1111.43,0.0001926,2]
[362236448,1748115053096,-420.0,0.0001926,2]
[362236449,1748115053105,-420.0,0.0001926,2]
[362236450,1748115053114,-151.0,0.0001926,2]
[362236451,1748115053124,-208.27692773,0.0001926,2]
[362236452,1748115053134,-207.68223961,0.0001926,2]
[362236453,1748115053143,-420.0,0.0001926,2]
[362236454,1748115053153,-5698.09,0.0001926,2]
[362236455,1748115053162,-5578.62,0.0001926,2]
[362236456,1748115053172,-706.63,0.0001926,2]
[362236457,1748115053183,-151.0,0.0001926,2]
[362236458,1748115053193,-2756.48,0.0001926,2]
[362236459,1748115053203,-13456.5,0.0001926,2]
[362236460,1748115053212,-389.42226546,0.0001926,2]
[362236461,1748115053222,-420.0,0.0001926,2]
[362236462,1748115053231,-2241.13,0.0001926,2]
[362236463,1748115053241,-550.11,0.0001926,2]
[362236464,1748115053254,-420.0,0.0001926,2]
[362236465,1748115053263,-420.0,0.0001926,2]
[362236466,1748115053274,-151.0,0.0001926,2]
[362236467,1748115053284,-420.0,0.0001926,2]
[362236468,1748115053295,-420.0,0.0001926,2]
[362236469,1748115053306,-1331.72,0.0001926,2]
[362236470,1748115053316,-420.0,0.0001926,2]
[362236471,1748115053325,-420.0,0.0001926,2]
[362236472,1748115053335,-420.0,0.0001926,2]
[362236473,1748115053345,-420.0,0.0001926,2]
[362236474,1748115053418,-420.0,0.0001926,2]
[362236475,1748115053428,-420.0,0.0001926,2]
[362236476,1748115053439,-151.0,0.0001926,2]
[362236477,1748115053448,-570.91,0.0001926,2]
[362236478,1748115053457,-263.0358843,0.0001926,2]
[362236479,1748115053466,-420.0,0.0001926,2]
[362236480,1748115053476,-420.0,0.0001926,2]
[362236481,1748115053485,-420.0,0.0001926,2]
[362236482,1748115053495,-420.0,0.0001926,2]
[362236483,1748115053506,-151.0,0.0001926,2]
[362236484,1748115053515,-420.0,0.0001926,2]
[362236485,1748115053524,-420.0,0.0001926,2]
[362236486,1748115053534,-224.160865,0.0001926,2]
[362236487,1748115053543,-151.0,0.0001926,2]
[362236488,1748115053553,-186486.16,0.0001926,2]
[362236489,1748115053562,-789.83,0.0001926,2]
[362236490,1748115053571,-420.0,0.0001926,2]
[362236491,1748115053581,-420.0,0.0001926,2]
[362236492,1748115053590,-616.34,0.0001926,2]
[362236493,1748115053600,-151.0,0.0001926,2]
[362236494,1748115053610,-7354.43,0.0001926,2]
[362236495,1748115053620,-420.0,0.0001926,2]
[362236496,1748115053629,-2348.44,0.0001926,2]
[362236497,1748115053640,-151.0,0.0001926,2]
[362236498,1748115053650,-2573.5,0.0001926,2]
[362236499,1748115053661,-702.75,0.0001926,2]
[362236500,1748115053673,-2178.19,0.0001926,2]
[362236501,1748115053683,-420.0,0.0001926,2]
[362236502,1748115053693,-420.0,0.0001926,2]
[362236503,1748115053704,-420.0,0.0001926,2]
[362236504,1748115053714,-420.0,0.0001926,2]
[362236505,1748115053724,-1227.57,0.0001926,2]
[362236506,1748115053734,-541.11,0.0001926,2]
[362236507,1748115053744,-420.0,0.0001926,2]
[362236508,1748115053756,-2477.15,0.0001926,2]
[362236509,1748115053766,-420.0,0.0001926,2]
[362236510,1748115053775,-420.0,0.0001926,2]
[362236511,1748115053785,-420.0,0.0001926,2]
[362236512,1748115053794,-420.0,0.0001926,2]
[362236513,1748115053804,-420.0,0.0001926,2]
[362236514,1748115053813,-420.0,0.0001926,2]
[362236515,1748115053823,-420.0,0.0001926,2]
[362236516,1748115053833,-151.0,0.0001926,2]
[362236517,1748115053843,-151.0,0.0001926,2]
[362236518,1748115053852,-420.0,0.0001926,2]
[362236519,1748115053862,-420.0,0.0001926,2]
[362236520,1748115053872,-429.87,0.0001926,2]
[362236521,1748115053881,-420.0,0.0001926,2]
[362236522,1748115053891,-1089.61,0.0001926,2]
[362236523,1748115053900,-2842.27,0.0001926,2]
[362236524,1748115053909,-420.0,0.0001926,2]
[362236525,1748115053919,-484.77461438,0.0001926,2]
[362236526,1748115053928,-420.0,0.0001926,2]
[362236527,1748115053938,-420.0,0.0001926,2]
[362236528,1748115053947,-420.0,0.0001926,2]
[362236529,1748115053956,-420.0,0.0001926,2]
[362236530,1748115053966,-420.0,0.0001926,2]
[362236531,1748115053975,-420.0,0.0001926,2]
[362236532,1748115053985,-9209.65,0.0001926,2]
[362236533,1748115053995,-2923.07,0.0001926,2]
[362236534,1748115054005,-308.91247725,0.0001926,2]
[362236535,1748115054015,-420.0,0.0001926,2]
[362236536,1748115054024,-5360.15,0.0001926,2]
[362236537,1748115054034,-367.59402452,0.0001926,2]
[362236538,1748115054043,-420.0,0.0001926,2]
[362236539,1748115054053,-420.0,0.0001926,2]
[362236540,1748115054063,-420.0,0.0001926,2]
[362236541,1748115054072,-420.0,0.0001926,2]
[362236542,1748115054082,-420.0,0.0001926,2]
[362236543,1748115054091,-420.0,0.0001926,2]
[362236544,1748115054101,-420.0,0.0001926,2]
[362236545,1748115054111,-5522.98,0.0001926,2]
[362236546,1748115054122,-541.59,0.0001926,2]
[362236547,1748115054132,-420.0,0.0001926,2]
[362236548,1748115054141,-510.78,0.0001926,2]
[362236549,1748115054151,-423.06837547,0.0001926,2]
[362236550,1748115054161,-420.0,0.0001926,2]
[362236551,1748115054171,-420.0,0.0001926,2]
[362236552,1748115054180,-536.8911678,0.0001926,2]
[362236553,1748115054191,-420.0,0.0001926,2]
[362236554,1748115054200,-286.49471126,0.0001926,2]
[362236555,1748115054209,-420.0,0.0001926,2]
[362236556,1748115054219,-420.0,0.0001926,2]
[362236557,1748115054228,-420.0,0.0001926,2]
[362236558,1748115054238,-420.0,0.0001926,2]
[362236559,1748115054248,-675.32,0.0001926,2]
[362236560,1748115054257,-420.0,0.0001926,2]
[362236561,1748115054267,-420.0,0.0001926,2]
[362236562,1748115054276,-420.0,0.0001926,2]
[362236563,1748115054286,-420.0,0.0001926,2]
[362236564,1748115054295,-420.0,0.0001926,2]
[362236565,1748115054305,-420.0,0.0001926,2]
[362236566,1748115054314,-420.0,0.0001926,2]
[362236567,1748115054323,-10569.08,0.0001926,2]
[362236568,1748115054332,-420.0,0.0001926,2]
[362236569,1748115054341,-420.0,0.0001926,2]
[362236570,1748115054351,-420.0,0.0001926,2]
[362236571,1748115054362,-420.0,0.0001926,2]
[362236572,1748115054371,-151.0,0.0001926,2]
[362236573,1748115054382,-862.52,0.0001926,2]
[362236574,1748115054391,-420.0,0.0001926,2]
[362236575,1748115054402,-503.16973193,0.00019273,2]
[362236576,1748115054412,-500.0,0.00019273,2]
[362236577,1748115054421,-500.0,0.00019273,2]
[362236578,1748115054432,-6061.71841447,0.00019279,2]
[362236579,1748115054442,-222.071636,0.00019287,2]
[362236580,1748115054451,-152.925138,0.00019287,2]
[362236581,1748115054461,-420.0,0.00019287,2]
[362236582,1748115054471,-235.3882516,0.00019287,2]
[362236583,1748115054479,-250.0,0.00019287,2]
[362236584,1748115054489,-420.0,0.00019287,2]
[362236585,1748115054499,-420.0,0.00019287,2]
[362236586,1748115054508,-274.82587193,0.00019287,2]
[362236587,1748115054517,-420.0,0.00019287,2]
[362236588,1748115054527,-1241.04,0.00019287,2]
[362236589,1748115054536,-237.60082784,0.00019287,2]
[362236590,1748115054545,-344.4551916,0.00019287,2]
[362236591,1748115054555,-420.0,0.00019287,2]
[362236592,1748115054564,-151.0,0.00019287,2]
[362236593,1748115054574,-151.0,0.00019287,2]
[362236594,1748115054583,-420.0,0.00019287,2]
[362236595,1748115054592,-151.0,0.00019287,2]
[362236596,1748115054601,-420.0,0.00019287,2]
[362236597,1748115054610,-236.20458146,0.00019287,2]
[362236598,1748115054620,-420.0,0.00019287,2]
[362236599,1748115054629,-420.0,0.00019287,2]
[362236600,1748115054639,-151.0,0.00019287,2]
[362236601,1748115054648,-420.0,0.00019287,2]
[362236602,1748115054658,-861.14,0.00019287,2]
[362236603,1748115054668,-429.56,0.00019287,2]
[362236604,1748115054678,-420.0,0.00019287,2]
[362236605,1748115054688,-151.0,0.00019287,2]
[362236606,1748115054697,-569.62,0.00019287,2]
[362236607,1748115054708,-420.0,0.00019287,2]
[362236608,1748115054717,-420.0,0.00019287,2]
[362236609,1748115054727,-420.0,0.00019287,2]
[362236610,1748115054736,-152.1194269,0.00019287,2]
[362236611,1748115054746,-420.0,0.00019287,2]
[362236612,1748115054756,-195.17094552,0.00019287,2]
[362236613,1748115054765,-1509.95,0.00019287,2]
[362236614,1748115054774,-1012.03,0.00019287,2]
[362236615,1748115054784,-1201.17,0.00019287,2]
[362236616,1748115054793,-420.0,0.00019287,2]
[362236617,1748115054802,-553.0096721,0.00019287,2]
[362236618,1748115054812,-1007.69,0.00019287,2]
[362236619,1748115054821,-481.08685645,0.00019287,2]
[362236620,1748115054831,-420.0,0.00019287,2]
[362236621,1748115054840,-420.0,0.00019287,2]
[362236622,1748115054850,-420.0,0.00019287,2]
[362236623,1748115054860,-442.46803097,0.00019287,2]
[362236624,1748115054869,-420.0,0.00019287,2]
[362236625,1748115054879,-1958.34,0.00019287,2]
[362236626,1748115054889,-420.0,0.00019287,2]
[362236627,1748115054899,-338.51317614,0.00019287,2]
[362236628,1748115054909,-420.0,0.00019287,2]
[362236629,1748115054918,-420.0,0.00019287,2]
[362236630,1748115054928,-420.0,0.00019287,2]
[362236631,1748115054937,-1294.31,0.00019287,2]
[362236632,1748115054946,-420.0,0.00019287,2]
[362236633,1748115054956,-420.0,0.00019287,2]
[362236634,1748115054965,-420.0,0.00019287,2]
[362236635,1748115054975,-262.5229378,0.00019287,2]
[362236636,1748115054984,-1748.26,0.00019287,2]
[362236637,1748115054995,-420.0,0.00019287,2]
[362236638,1748115055005,-451.9,0.00019287,2]
[362236639,1748115055014,-420.0,0.00019287,2]
[362236640,1748115055023,-420.0,0.00019287,2]
[362236641,1748115055033,-474.06161914,0.00019287,2]
[362236642,1748115055042,-420.0,0.00019287,2]
[362236643,1748115055052,-420.0,0.00019287,2]
[362236644,1748115055062,-420.0,0.00019287,2]
[362236645,1748115055072,-420.0,0.00019287,2]
[362236646,1748115055081,-171.889444,0.00019287,2]
[362236647,1748115055091,-420.0,0.00019287,2]
[362236648,1748115055100,-555.82,0.00019287,2]
[362236649,1748115055110,-420.0,0.00019287,2]
[362236650,1748115055120,-420.0,0.00019287,2]
[362236651,1748115055130,-420.0,0.00019287,2]
[362236652,1748115055139,-420.0,0.00019287,2]
[362236653,1748115055149,-536.45,0.00019287,2]
[362236654,1748115055158,-420.0,0.00019287,2]
[362236655,1748115055167,-470.79756366,0.00019287,2]
[362236656,1748115055177,-420.0,0.00019287,2]
[362236657,1748115055186,-420.0,0.00019287,2]
[362236658,1748115055196,-420.0,0.00019287,2]
[362236659,1748115055205,-420.0,0.00019287,2]
[362236660,1748115055215,-420.0,0.00019287,2]
[362236661,1748115055224,-420.0,0.00019287,2]
[362236662,1748115055233,-420.0,0.00019287,2]
[362236663,1748115055243,-151.0,0.00019287,2]
[362236664,1748115055252,-420.0,0.00019287,2]
[362236665,1748115055261,-456.324027,0.00019287,2]
[362236666,1748115055271,-151.0,0.00019287,2]
[362236667,1748115055281,-420.0,0.00019287,2]
[362236668,1748115055289,-420.0,0.00019287,2]
[362236669,1748115055299,-456.324027,0.00019287,2]
[362236670,1748115055307,-151.0,0.00019287,2]
[362236671,1748115055317,-151.0,0.00019287,2]
[362236672,1748115055326,-151.0,0.00019287,2]
[362236673,1748115055335,-151.0,0.00019287,2]
[362236674,1748115055344,-151.0,0.00019287,2]
[362236675,1748115055353,-267.611093,0.00019287,2]
[362236676,1748115055362,-420.0,0.00019287,2]
[362236677,1748115055372,-151.0,0.00019287,2]
[362236678,1748115055381,-420.0,0.00019287,2]
[362236679,1748115055391,-420.0,0.00019287,2]
[362236680,1748115055400,-420.0,0.00019287,2]
[362236681,1748115055409,-420.0,0.00019287,2]
[362236682,1748115055421,-420.0,0.00019287,2]
[362236683,1748115055430,-420.0,0.00019287,2]
[362236684,1748115055439,-420.0,0.00019287,2]
[362236685,1748115055449,-420.0,0.00019287,2]
[362236686,1748115055459,-398.16574508,0.00019287,2]
[362236687,1748115055470,-375.77260641,0.00019287,2]
[362236688,1748115055480,-420.0,0.00019287,2]